fUST/lending_fUST_20250812
["ID","MTS","AMOUNT","RATE_DAILY","PERIOD"]
[378759247,1755004233097,-460.0,0.00017862,2]
[378759249,1755004233106,-460.0,0.00017862,2]
[378759251,1755004233116,-460.0,0.00017862,2]
[378759253,1755004233126,-464.12,0.00017862,2]
[378759255,1755004233136,-538.74,0.00017862,2]
[378759257,1755004233146,-478.1006777,0.00017862,2]
[378759259,1755004233156,-460.0,0.00017862,2]
[378759261,1755004233166,-864.87,0.00017862,2]
[378759263,1755004233175,-207.56527739,0.00017862,2]
[378759265,1755004233185,-460.0,0.00017862,2]
[378759266,1755004233194,-460.0,0.00017862,2]
[378759269,1755004233204,-675.46,0.00017862,2]
[378759270,1755004233213,-460.0,0.00017862,2]
[378759272,1755004233223,-460.0,0.00017862,2]
[378759275,1755004233234,-120.66802487,0.00017862,2]
[378759277,1755004233246,-339.33197513,0.00017862,2]
[378759279,1755004233255,-77.31356592,0.00017862,2]
[378759281,1755004233267,-382.68643408,0.00017862,2]
[378759283,1755004233277,-73.79317234,0.00017863,2]
[378759285,1755004233288,-386.20682766,0.00017863,2]
[378759287,1755004233298,-222.63551714,0.00017863,2]
[378759289,1755004233307,-460.0,0.00017863,2]
[378759291,1755004233317,-460.0,0.00017863,2]
[378759293,1755004233326,-54.04633292,0.00017863,2]
[378760055,1755004240915,-460.0,0.00017862,2]
[378760058,1755004240924,-405.95366708,0.00017863,2]
[378760060,1755004240934,-460.0,0.00017863,2]
[378760062,1755004240943,-460.0,0.00017863,2]
[378760064,1755004240953,-460.0,0.00017863,2]
[378760066,1755004240963,-315.48522292,0.00017863,2]
[378760068,1755004240972,-460.0,0.00017863,2]
[378760070,1755004240983,-460.0,0.00017863,2]
[378760072,1755004240992,-460.0,0.00017863,2]
[378760074,1755004241001,-460.0,0.00017863,2]
[378760076,1755004241010,-464.16885423,0.00017863,2]
[378760078,1755004241020,-460.0,0.00017863,2]
[378760080,1755004241029,-460.0,0.00017863,2]
[378760082,1755004241038,-460.0,0.00017863,2]
[378760084,1755004241047,-243.89766951,0.00017863,2]
[378760169,1755004241833,-460.0,0.00017856,2]
[378760171,1755004241842,-216.10233049,0.00017863,2]
[378760173,1755004241852,-460.0,0.00017863,2]
[378760175,1755004241861,-536.69499624,0.00017863,2]
[378760177,1755004241870,-378.89075972,0.00017863,2]
[378760179,1755004241880,-460.0,0.00017863,2]
[378760181,1755004241890,-460.0,0.00017863,2]
[378760183,1755004241899,-352.37970355,0.00017863,2]
[378760360,1755004243839,-460.0,0.00017862,2]
[378760362,1755004243849,-107.62029645,0.00017863,2]
[378760364,1755004243858,-77.78009653,0.00017863,2]
[378760629,1755004246589,-2298.12,0.00017856,2]
[378760631,1755004246599,-6946.06,0.00017862,2]
[378760633,1755004246608,-382.21990347,0.00017863,2]
[378760635,1755004246617,-460.0,0.00017863,2]
[378760637,1755004246626,-460.0,0.00017863,2]
[378760639,1755004246635,-460.0,0.00017863,2]
[378760641,1755004246645,-460.0,0.00017863,2]
[378760643,1755004246654,-460.0,0.00017863,2]
[378760644,1755004246663,-460.0,0.00017863,2]
[378760646,1755004246672,-460.0,0.00017863,2]
[378760648,1755004246682,-460.0,0.00017863,2]
[378760650,1755004246692,-497.41890944,0.00017863,2]
[378760652,1755004246701,-460.0,0.00017863,2]
[378760654,1755004246711,-460.0,0.00017863,2]
[378760657,1755004246720,-460.0,0.00017863,2]
[378760659,1755004246730,-460.0,0.00017863,2]
[378760661,1755004246740,-460.0,0.00017863,2]
[378760663,1755004246750,-460.0,0.00017863,2]
[378760665,1755004246759,-460.0,0.00017863,2]
[378760667,1755004246768,-460.0,0.00017863,2]
[378760669,1755004246778,-568.3,0.00017863,2]
[378760671,1755004246787,-460.0,0.00017863,2]
[378760673,1755004246796,-460.0,0.00017863,2]
[378760675,1755004246805,-562.55,0.00017863,2]
[378760677,1755004246815,-460.0,0.00017863,2]
[378760679,1755004246826,-460.0,0.00017863,2]
[378760681,1755004246835,-460.0,0.00017863,2]
[378760683,1755004246844,-496.03,0.00017863,2]
[378760685,1755004246854,-460.0,0.00017863,2]
[378760687,1755004246863,-460.0,0.00017863,2]
[378760688,1755004246872,-297.96081656,0.00017863,2]
[378760700,1755004246972,-0.65516388,0.00017863,2]
[378762567,1755004409805,3629.20011041,0.00016794,2]
[378762568,1755004409827,10000.0,0.00016794,2]
[378762569,1755004409848,10000.0,0.00016794,2]
[378762570,1755004409869,1270.79988959,0.00016794,2]
[378762571,1755004432399,609.403359,0.00016771,2]
[378762572,1755004433798,-424.35506927,0.000177,2]
[378762573,1755004436381,-162.53192024,0.000177,2]
[378762574,1755004438427,-178.42545669,0.000177,2]
[378762575,1755004440046,-244.71229766,0.000177,2]
[378762576,1755004443217,-185.4545065,0.000177,2]
[378762577,1755004444702,-287.3297992,0.000177,2]
[378762578,1755004447501,-257.7536585,0.000177,2]
[378762579,1755004450559,-195.96891215,0.000177,2]
[378762580,1755004452066,-311.2871883,0.000177,2]
[378762581,1755004676666,5726.4833719,0.00016759,2]
[378762582,1755004702347,-169.19780497,0.00017651,2]
[378762583,1755004702376,-50.15894795,0.000177,2]
[378762584,1755004705065,-223.73164722,0.000177,2]
[378762585,1755004707653,-309.21945475,0.000177,2]
[378762586,1755004709296,-177.11,0.000177,2]
[378762587,1755004797106,-355.28763681,0.00017402,2]
[378762588,1755004799577,-320.70736909,0.00017402,2]
[378762589,1755004803244,-124.0049941,0.00017402,2]
[378762590,1755004803271,-139.74851568,0.000177,2]
[378762592,1755004809598,5074.248,0.00031027,60]
[378762593,1755004882370,-166.23342919,0.00017604,2]
[378762594,1755004884528,-262.78570305,0.00017604,2]
[378762595,1755004884550,-3.89016327,0.00017657,2]
[378762596,1755004886076,-206.91831522,0.00017657,2]
[378762597,1755004890716,-240.84487243,0.00017657,2]
[378762598,1755004893656,-385.0853581,0.00017657,2]
[378762599,1755004896324,-156.49865956,0.00017657,2]
[378762600,1755004899015,-49.9100809,0.00017657,2]
[378762601,1755004899044,-332.59841404,0.000177,2]
[378762602,1755004901421,-241.34877261,0.000177,2]
[378762603,1755004904091,-278.86136868,0.000177,2]
[378762604,1755004906200,-151.49281876,0.000177,2]
[378762605,1755004958003,-242.99832294,0.00017217,2]
[378762606,1755004958029,-168.28742705,0.00017557,2]
[378762607,1755004959898,-165.93516691,0.00017557,2]
[378762608,1755004963297,-228.94649826,0.00017557,2]
[378762609,1755004965455,-236.83090778,0.00017557,2]
[378762610,1755004981673,464.9109232,0.00030136,120]
[378762611,1755005033755,-264.65620102,0.0001764,2]
[378762612,1755005037783,-526.46780426,0.0001764,2]
[378762613,1755005040467,-8.87599472,0.0001764,2]
[378762614,1755005097414,-284.70316621,0.00017605,2]
[378762615,1755005100581,-334.79107762,0.00017605,2]
[378762617,1755005124908,-180.50575617,0.00017605,2]
[378762618,1755005156979,-239.00237299,0.00017581,2]
[378762619,1755005159669,-186.93,0.00017581,2]
[378762620,1755005161727,-165.52241516,0.00017581,2]
[378762621,1755005163263,-208.54521185,0.00017581,2]
[378762622,1755005163292,-79.13846234,0.00017604,2]
[378762623,1755005166252,-245.34930878,0.00017604,2]
[378762624,1755005167324,-259.72974947,0.00017604,2]
[378762626,1755005169936,-215.78247941,0.00017604,2]
[378762636,1755005332853,1158.27065828,0.0001,2]
[378762637,1755005365536,304.701679,0.00016748,2]
[378762638,1755005371325,930.34104223,0.00016748,2]
[378762639,1755005371347,10000.0,0.00016748,2]
[378762640,1755005371369,10000.0,0.00016748,2]
[378762641,1755005371390,3969.65895777,0.00016748,2]
[378762679,1755005432947,-1409.74783522,0.00017647,2]
[378762680,1755005432957,-300.0,0.00017656,2]
[378762681,1755005432966,-755.16856138,0.00017656,2]
[378762695,1755005438644,-444.83143862,0.00017656,2]
[378762696,1755005438654,-300.0,0.00017656,2]
[378762697,1755005438662,-3620.14214531,0.00017657,2]
[378762698,1755005438671,-800.0,0.00017657,2]
[378762699,1755005438679,-800.0,0.00017726,2]
[378762700,1755005438687,-500.0,0.00017746,2]
[378762701,1755005438695,-500.0,0.00017746,2]
[378762702,1755005438703,-500.0,0.00017746,2]
[378762703,1755005438713,-500.0,0.00017746,2]
[378762704,1755005438722,-300.80460474,0.00017746,2]
[378762705,1755005438731,-500.0,0.00017746,2]
[378762706,1755005438742,-500.0,0.00017746,2]
[378762707,1755005438753,-500.0,0.00017746,2]
[378762708,1755005438763,-500.0,0.00017746,2]
[378762709,1755005438770,-500.0,0.00017746,2]
[378762710,1755005438777,-500.0,0.00017746,2]
[378762711,1755005438785,-464.41334008,0.00017746,2]
[378762712,1755005438791,-500.0,0.00017746,2]
[378762713,1755005438798,-500.0,0.00017746,2]
[378762714,1755005438806,-399.4704152,0.00017746,2]
[378762715,1755005438813,-500.0,0.00017746,2]
[378762716,1755005438821,-593.52721771,0.00017746,2]
[378762717,1755005438829,-500.0,0.00017746,2]
[378762718,1755005438835,-607.82630603,0.00017746,2]
[378762719,1755005438841,-500.0,0.00017746,2]
[378762720,1755005438848,-500.0,0.00017746,2]
[378762721,1755005438855,-500.0,0.00017746,2]
[378762722,1755005438862,-500.0,0.00017746,2]
[378762723,1755005438868,-500.0,0.00017746,2]
[378762724,1755005438874,-500.0,0.00017746,2]
[378762725,1755005438881,-500.0,0.00017746,2]
[378762726,1755005438887,-500.0,0.00017746,2]
[378762727,1755005438896,-500.0,0.00017746,2]
[378762728,1755005438902,-500.0,0.00017746,2]
[378762729,1755005438910,-500.0,0.00017746,2]
[378762730,1755005438916,-500.0,0.00017746,2]
[378762731,1755005438923,-293.63058769,0.00017746,2]
[378762732,1755005438930,-500.0,0.00017746,2]
[378762733,1755005438936,-500.0,0.00017746,2]
[378762734,1755005438944,-500.0,0.00017746,2]
[378762735,1755005438950,-500.0,0.00017746,2]
[378762736,1755005438956,-500.0,0.00017746,2]
[378762737,1755005438966,-500.0,0.00017746,2]
[378762738,1755005438975,-500.0,0.00017746,2]
[378762739,1755005438984,-500.0,0.00017746,2]
[378762740,1755005438999,-500.0,0.00017746,2]
[378762741,1755005439008,-391.75280299,0.00017746,2]
[378762742,1755005439018,-565.96581224,0.00017746,2]
[378762743,1755005439027,-500.0,0.00017746,2]
[378762744,1755005439036,-500.0,0.00017746,2]
[378762745,1755005439045,-500.0,0.00017746,2]
[378762746,1755005439054,-500.0,0.00017746,2]
[378762747,1755005439063,-500.0,0.00017746,2]
[378762748,1755005439071,-500.0,0.00017746,2]
[378762749,1755005439082,-500.0,0.00017746,2]
[378762750,1755005439093,-500.0,0.00017746,2]
[378762751,1755005439104,-500.0,0.00017746,2]
[378762752,1755005439117,-500.0,0.00017746,2]
[378762753,1755005439129,-500.0,0.00017746,2]
[378762754,1755005439139,-500.0,0.00017746,2]
[378762755,1755005439149,-500.0,0.00017746,2]
[378762756,1755005439164,-500.0,0.00017746,2]
[378762757,1755005439179,-500.0,0.00017746,2]
[378762758,1755005439190,-500.0,0.00017746,2]
[378762759,1755005439201,-500.0,0.00017746,2]
[378762760,1755005439211,-500.0,0.00017746,2]
[378762761,1755005439222,-500.0,0.00017746,2]
[378762762,1755005439233,-500.0,0.00017746,2]
[378762763,1755005439256,-500.0,0.00017746,2]
[378762764,1755005439268,-500.0,0.00017746,2]
[378762765,1755005439278,-500.0,0.00017746,2]
[378762766,1755005439289,-500.0,0.00017746,2]
[378762767,1755005439299,-500.0,0.00017746,2]
[378762768,1755005439309,-500.0,0.00017746,2]
[378762769,1755005439320,-500.0,0.00017746,2]
[378762770,1755005439330,-500.0,0.00017746,2]
[378762771,1755005439341,-500.0,0.00017746,2]
[378762772,1755005439351,-500.0,0.00017746,2]
[378762773,1755005439361,-500.0,0.00017746,2]
[378762774,1755005439371,-500.0,0.00017746,2]
[378762775,1755005439382,-500.0,0.00017746,2]
[378762776,1755005439391,-341.63442834,0.00017746,2]
[378762777,1755005439402,-500.0,0.00017746,2]
[378762778,1755005439412,-500.0,0.00017746,2]
[378762779,1755005439421,-500.0,0.00017746,2]
[378762780,1755005439431,-500.0,0.00017746,2]
[378762781,1755005439441,-500.0,0.00017746,2]
[378762782,1755005439450,-500.0,0.00017746,2]
[378762783,1755005439460,-500.0,0.00017746,2]
[378762784,1755005439469,-500.0,0.00017746,2]
[378762785,1755005439478,-500.0,0.00017746,2]
[378762786,1755005439489,-500.0,0.00017746,2]
[378762787,1755005439504,-500.0,0.00017746,2]
[378762788,1755005439514,-500.0,0.00017746,2]
[378762789,1755005439524,-747.0,0.00017747,2]
[378762790,1755005439534,-463.49333019,0.00017747,2]
[378762791,1755005439544,-460.0,0.00017747,2]
[378762792,1755005439553,-316.35285608,0.00017747,2]
[378762793,1755005439562,-460.0,0.00017747,2]
[378762794,1755005439571,-460.0,0.00017747,2]
[378762795,1755005439581,-460.0,0.00017747,2]
[378762796,1755005439590,-155.6919122,0.00017747,2]
[378762797,1755005439600,-465.96498739,0.00017747,2]
[378762798,1755005439614,-460.0,0.00017747,2]
[378762799,1755005439624,-460.0,0.00017747,2]
[378762800,1755005439634,-460.0,0.00017747,2]
[378762801,1755005439643,-460.0,0.00017747,2]
[378762802,1755005439654,-460.0,0.00017747,2]
[378762803,1755005439663,-488.71155435,0.00017748,2]
[378762804,1755005439673,-27507.34154777,0.00017748,2]
[378762805,1755005439687,-22492.65845223,0.00017748,2]
[378762806,1755005439701,-2984.66,0.00017748,2]
[378762807,1755005439710,-460.0,0.00017748,2]
[378762808,1755005439720,-462.2223395,0.00017748,2]
[378762809,1755005439729,-460.0,0.00017748,2]
[378762810,1755005439738,-460.0,0.00017748,2]
[378762811,1755005439754,-460.0,0.00017748,2]
[378762812,1755005439763,-811.61,0.00017748,2]
[378762813,1755005439772,-460.0,0.00017748,2]
[378762814,1755005439782,-460.0,0.00017748,2]
[378762815,1755005439965,-460.0,0.00017748,2]
[378762816,1755005439982,-506.91,0.00017748,2]
[378762817,1755005439998,-500.0,0.00017748,2]
[378762818,1755005440008,-460.0,0.00017748,2]
[378762819,1755005440018,-460.0,0.00017748,2]
[378762820,1755005440028,-480.47,0.00017748,2]
[378762821,1755005440037,-460.0,0.00017748,2]
[378762822,1755005440047,-497.88,0.00017748,2]
[378762823,1755005440056,-604.82,0.00017748,2]
[378762824,1755005440066,-4366.05,0.00017748,2]
[378762825,1755005440075,-460.0,0.00017748,2]
[378762826,1755005440084,-604.80092668,0.00017748,2]
[378762827,1755005440093,-4278.72,0.00017748,2]
[378762828,1755005440103,-460.0,0.00017748,2]
[378762829,1755005440112,-460.0,0.00017748,2]
[378762830,1755005440121,-460.0,0.00017748,2]
[378762831,1755005440130,-460.0,0.00017748,2]
[378762832,1755005440140,-2199.99,0.00017748,2]
[378762833,1755005440149,-7997.19,0.00017748,2]
[378762834,1755005440158,-460.0,0.00017748,2]
[378762835,1755005440168,-765.83,0.00017748,2]
[378762836,1755005440177,-460.0,0.00017748,2]
[378762837,1755005440187,-2255.45,0.00017748,2]
[378762838,1755005440196,-460.0,0.00017748,2]
[378762840,1755005440206,-703.69,0.00017748,2]
[378762841,1755005440215,-460.0,0.00017748,2]
[378762843,1755005440225,-460.0,0.00017748,2]
[378762845,1755005440234,-7071.45567181,0.00017749,2]
[378762847,1755005440249,-4927.02,0.00017749,3]
[378762849,1755005440259,-2496.46,0.00017749,3]
[378762851,1755005440269,-1383.71,0.00017749,3]
[378762853,1755005440278,-691.85,0.00017749,3]
[378762855,1755005440288,-345.93,0.00017749,3]
[378762857,1755005440297,-172.96,0.00017749,3]
[378762858,1755005440308,-518.93,0.00017749,3]
[378762859,1755005440316,-417.15472785,0.00017749,3]
[378762861,1755005440324,-528.03329096,0.00017749,3]
[378762863,1755005440334,-12673.43806534,0.00017749,3]
[378762864,1755005440344,-500.0,0.00017749,2]
[378762865,1755005440353,-500.0,0.00017749,2]
[378762866,1755005440363,-500.0,0.00017749,2]
[378762867,1755005440372,-215.52532928,0.00017749,3]
[378762869,1755005440382,-461.76100612,0.00017749,3]
[378762871,1755005440392,-460.0,0.0001775,2]
[378762872,1755005440402,-2663.14,0.0001775,2]
[378762873,1755005440411,-460.0,0.0001775,2]
[378762874,1755005440420,-460.0,0.0001775,2]
[378762875,1755005440430,-460.0,0.0001775,2]
[378762876,1755005440439,-4208.04,0.0001775,2]
[378762877,1755005440448,-476.57804153,0.0001775,2]
[378762878,1755005440458,-706.14,0.0001775,2]
[378762879,1755005440467,-460.0,0.0001775,2]
[378762880,1755005440476,-460.0,0.0001775,2]
[378762881,1755005440485,-1539.46,0.0001775,2]
[378762883,1755005440499,-1419.39,0.0001775,2]
[378762885,1755005440508,-460.0,0.0001775,2]
[378762886,1755005440517,-500.0,0.0001775,2]
[378762887,1755005440528,-500.0,0.0001775,2]
[378762888,1755005440538,-363.36591585,0.0001775,2]
[378762889,1755005440547,-460.0,0.0001775,2]
[378762890,1755005440556,-460.0,0.0001775,2]
[378762891,1755005440566,-460.0,0.0001775,2]
[378762892,1755005440575,-460.0,0.0001775,2]
[378762893,1755005440584,-839.14,0.0001775,2]
[378762894,1755005440593,-780.4,0.0001775,2]
[378762895,1755005440604,-1414.79,0.0001775,2]
[378762896,1755005440613,-460.0,0.0001775,2]
[378762897,1755005440624,-460.0,0.0001775,2]
[378762898,1755005440634,-460.0,0.0001775,2]
[378762899,1755005440644,-460.0,0.0001775,2]
[378762900,1755005440653,-583.66,0.0001775,2]
[378762901,1755005440663,-460.0,0.0001775,2]
[378762902,1755005440674,-460.0,0.0001775,2]
[378762903,1755005440682,-500.0,0.00017755,2]
[378762904,1755005440692,-462.79052649,0.00017756,2]
[378762905,1755005440703,-460.0,0.00017756,2]
[378762906,1755005440712,-151.67827244,0.00017756,2]
[378762907,1755005440722,-151.0,0.00017756,2]
[378762908,1755005440730,-151.0,0.00017756,2]
[378762909,1755005440739,-500.0,0.00017756,2]
[378762910,1755005440754,-151.0,0.00017756,2]
[378762911,1755005440763,-151.0,0.00017756,2]
[378762912,1755005440772,-500.0,0.00017756,2]
[378762913,1755005440781,-500.0,0.00017756,2]
[378762914,1755005440791,-3088.59,0.00017756,2]
[378762915,1755005440800,-460.0,0.00017756,2]
[378762916,1755005440809,-1613.89,0.00017756,2]
[378762917,1755005440819,-1500.07,0.00017756,2]
[378762918,1755005440828,-857.01,0.00017756,2]
[378762919,1755005440837,-460.0,0.00017756,2]
[378762920,1755005440846,-460.0,0.00017756,2]
[378762921,1755005440855,-460.0,0.00017756,2]
[378762922,1755005440865,-460.0,0.00017756,2]
[378762923,1755005440875,-462.48354589,0.00017756,2]
[378762924,1755005440884,-460.0,0.00017756,2]
[378762925,1755005440893,-2593.61,0.00017756,2]
[378762926,1755005440902,-151.0,0.00017756,2]
[378762927,1755005440912,-151.0,0.00017756,2]
[378762928,1755005440922,-500.0,0.00017756,2]
[378762929,1755005440931,-500.0,0.00017756,2]
[378762930,1755005440941,-460.0,0.00017756,2]
[378762931,1755005440950,-502.78690373,0.00017756,2]
[378762932,1755005440959,-4009.66,0.00017756,2]
[378762933,1755005440969,-460.0,0.00017756,2]
[378762934,1755005440978,-460.0,0.00017756,2]
[378762935,1755005440987,-468.19453096,0.00017756,2]
[378762936,1755005441000,-1521.0,0.00017756,2]
[378762937,1755005441009,-2415.0,0.00017756,2]
[378762938,1755005441018,-201.90131021,0.00017756,2]
[378762939,1755005441027,-500.0,0.00017756,2]
[378762940,1755005441037,-500.0,0.00017756,2]
[378762941,1755005441047,-533.85757812,0.00017757,2]
[378762942,1755005441056,-460.0,0.00017757,2]
[378762943,1755005441065,-460.0,0.00017757,2]
[378762944,1755005441075,-460.0,0.00017757,2]
[378762945,1755005441084,-843.95,0.00017757,2]
[378762946,1755005441094,-699.79,0.00017757,2]
[378762947,1755005441103,-603.51,0.00017757,2]
[378762948,1755005441112,-460.0,0.00017757,2]
[378762949,1755005441122,-460.0,0.00017757,2]
[378762950,1755005441131,-460.0,0.00017757,2]
[378762951,1755005441140,-460.0,0.00017757,2]
[378762952,1755005441150,-460.0,0.00017757,2]
[378762953,1755005441159,-705.89,0.00017757,2]
[378762954,1755005441169,-460.0,0.00017757,2]
[378762955,1755005441178,-460.0,0.00017757,2]
[378762956,1755005441188,-460.0,0.00017757,2]
[378762957,1755005441198,-460.0,0.00017757,2]
[378762958,1755005441207,-619.06,0.00017757,2]
[378762959,1755005441217,-460.0,0.00017757,2]
[378762960,1755005441226,-715.97,0.00017757,2]
[378762961,1755005441235,-589.34,0.00017757,2]
[378762962,1755005441248,-474.62,0.00017757,2]
[378762963,1755005441258,-460.0,0.00017757,2]
[378762964,1755005441268,-460.0,0.00017757,2]
[378762965,1755005441277,-460.72166703,0.00017757,2]
[378762966,1755005441287,-460.0,0.00017757,2]
[378762967,1755005441297,-460.0,0.00017757,2]
[378762968,1755005441306,-595.78632833,0.00017757,2]
[378762969,1755005441315,-460.0,0.00017757,2]
[378762970,1755005441324,-460.0,0.00017757,2]
[378762971,1755005441335,-460.0,0.00017757,2]
[378762972,1755005441344,-460.0,0.00017757,2]
[378762973,1755005441354,-565.27,0.00017757,2]
[378762974,1755005441363,-460.0,0.00017757,2]
[378762975,1755005441373,-460.0,0.00017757,2]
[378762976,1755005441382,-460.0,0.00017757,2]
[378762977,1755005441392,-460.0,0.00017757,2]
[378762978,1755005441402,-460.0,0.00017757,2]
[378762979,1755005441411,-460.0,0.00017757,2]
[378762980,1755005441421,-464.71121682,0.00017757,2]
[378762981,1755005441430,-460.0,0.00017757,2]
[378762982,1755005441439,-572.93,0.00017757,2]
[378762983,1755005441449,-529.93,0.00017757,2]
[378762984,1755005441458,-460.0,0.00017757,2]
[378762985,1755005441467,-460.0,0.00017757,2]
[378762986,1755005441476,-460.0,0.00017757,2]
[378762987,1755005441486,-500.0,0.00017757,2]
[378762988,1755005441498,-460.0,0.00017757,2]
[378762989,1755005441507,-500.0,0.00017757,2]
[378762990,1755005441517,-151.0,0.00017757,2]
[378762991,1755005441526,-460.0,0.00017757,2]
[378762992,1755005441536,-460.0,0.00017757,2]
[378762993,1755005441546,-460.0,0.00017757,2]
[378762994,1755005441555,-948.15,0.00017757,2]
[378762995,1755005441565,-500.0,0.00017757,2]
[378762996,1755005441574,-151.0,0.00017757,2]
[378762997,1755005441584,-460.0,0.00017757,2]
[378762998,1755005441593,-151.0,0.00017757,2]
[378762999,1755005441603,-460.0,0.00017757,2]
[378763000,1755005441616,-460.0,0.00017757,2]
[378763001,1755005441635,-151.0,0.00017757,2]
[378763002,1755005441647,-151.0,0.00017757,2]
[378763003,1755005441656,-500.0,0.00017757,2]
[378763004,1755005441666,-460.0,0.00017757,2]
[378763005,1755005441676,-460.0,0.00017757,2]
[378763006,1755005441686,-460.0,0.00017757,2]
[378763007,1755005441696,-833.09,0.00017757,2]
[378763008,1755005441706,-1138.89,0.00017757,2]
[378763009,1755005441715,-460.0,0.00017757,2]
[378763010,1755005441726,-633.72,0.00017757,2]
[378763011,1755005441736,-460.0,0.00017757,2]
[378763012,1755005441749,-460.0,0.00017757,2]
[378763013,1755005441759,-460.0,0.00017757,2]
[378763014,1755005441769,-460.0,0.00017757,2]
[378763015,1755005441779,-1454.72,0.00017757,2]
[378763016,1755005441790,-460.0,0.00017757,2]
[378763017,1755005441799,-652.63,0.00017757,2]
[378763018,1755005441809,-460.0,0.00017757,2]
[378763019,1755005441819,-587.45,0.00017757,2]
[378763020,1755005441828,-2799.71,0.00017757,2]
[378763021,1755005441838,-894.93,0.00017757,2]
[378763022,1755005441847,-460.0,0.00017757,2]
[378763023,1755005441857,-460.0,0.00017757,2]
[378763024,1755005441867,-482.73,0.00017757,2]
[378763025,1755005441876,-460.0,0.00017757,2]
[378763026,1755005441885,-460.0,0.00017757,2]
[378763027,1755005441895,-1355.02,0.00017757,2]
[378763028,1755005441904,-1552.47,0.00017757,2]
[378763029,1755005441913,-1260.1,0.00017757,2]
[378763030,1755005441923,-460.0,0.00017757,2]
[378763031,1755005441932,-2110.79,0.00017757,2]
[378763032,1755005441942,-460.53692922,0.00017757,2]
[378763033,1755005441951,-461.489885,0.00017757,2]
[378763034,1755005441961,-460.0,0.00017757,2]
[378763035,1755005441971,-775.37,0.00017757,2]
[378763036,1755005441980,-460.0,0.00017757,2]
[378763037,1755005441990,-1027.21,0.00017757,2]
[378763038,1755005442007,-460.0,0.00017757,2]
[378763039,1755005442017,-460.0,0.00017757,2]
[378763040,1755005442027,-1248.82,0.00017757,2]
[378763041,1755005442037,-460.0,0.00017757,2]
[378763042,1755005442047,-460.0,0.00017757,2]
[378763043,1755005442056,-460.0,0.00017757,2]
[378763044,1755005442065,-747.69,0.00017757,2]
[378763045,1755005442075,-460.0,0.00017757,2]
[378763046,1755005442084,-460.0,0.00017757,2]
[378763047,1755005442093,-460.0,0.00017757,2]
[378763048,1755005442103,-468.27380012,0.00017757,2]
[378763049,1755005442112,-460.0,0.00017757,2]
[378763050,1755005442122,-500.0,0.00017757,2]
[378763051,1755005442131,-500.0,0.00017757,2]
[378763052,1755005442141,-1191.85,0.00017757,2]
[378763053,1755005442151,-500.0,0.00017757,2]
[378763054,1755005442160,-500.0,0.00017757,2]
[378763055,1755005442170,-500.0,0.00017757,2]
[378763056,1755005442180,-460.0,0.00017758,2]
[378763057,1755005442189,-460.0,0.00017758,2]
[378763058,1755005442199,-460.0,0.00017758,2]
[378763059,1755005442209,-151.0,0.00017758,2]
[378763060,1755005442219,-151.0,0.00017758,2]
[378763061,1755005442229,-500.0,0.00017758,2]